fUSD/lending_fUSD_20240319
["ID","MTS","AMOUNT","RATE_DAILY","PERIOD"]
[319592815,1710885054117,-151.032006,0.00030405,4]
[319592816,1710885054126,-222.032006,0.00030406,3]
[319592817,1710885054135,-222.032006,0.00030406,4]
[319592818,1710885054145,-222.032006,0.00030407,4]
[319592819,1710885054154,-222.032006,0.00030407,3]
[319592820,1710885054163,-465.52150157,0.00030407,2]
[319592821,1710885054173,-293.21105674,0.00030408,4]
[319592822,1710885054182,-19361.4999371,0.00030408,4]
[319592823,1710885054192,-232.187454,0.00030408,4]
[319592824,1710885054202,-260.64353032,0.00030408,4]
[319592825,1710885054212,-5000.0,0.00030408,7]
[319592826,1710885054222,-222.032006,0.00030408,3]
[319592827,1710885054231,-222.032006,0.00030408,4]
[319592828,1710885054241,-500.0,0.00030409,2]
[319592829,1710885054250,-582.0340581,0.00030409,2]
[319592830,1710885054260,-150.0,0.00030409,2]
[319592831,1710885054269,-907759.5288301,0.0003041,2]
[319592832,1710885054279,-905.92,0.0003041,2]
[319592833,1710885054289,-760.8,0.0003041,2]
[319592834,1710885054299,-500.0,0.0003041,2]
[319592835,1710885054309,-500.0,0.0003041,2]
[319592836,1710885054318,-918.16,0.0003041,2]
[319592837,1710885054327,-1354.5,0.0003041,2]
[319592838,1710885054337,-500.0,0.0003041,2]
[319592839,1710885054347,-500.0,0.0003041,2]
[319592840,1710885054357,-500.0,0.0003041,2]
[319592841,1710885054366,-150.0,0.0003041,2]
[319592842,1710885054377,-563.69,0.0003041,2]
[319592843,1710885054390,-500.0,0.0003041,2]
[319592844,1710885054399,-553.29,0.0003041,2]
[319592845,1710885054409,-500.0,0.0003041,2]
[319592846,1710885054419,-500.0,0.0003041,2]
[319592847,1710885054429,-498.03420508,0.0003041,2]
[319592848,1710885054439,-500.0,0.0003041,2]
[319592849,1710885054450,-500.0,0.0003041,2]
[319592850,1710885054460,-500.0,0.0003041,2]
[319592851,1710885054469,-500.0,0.0003041,2]
[319592852,1710885054479,-576.34,0.0003041,2]
[319592853,1710885054489,-500.0,0.0003041,2]
[319592854,1710885054499,-500.0,0.0003041,2]
[319592855,1710885054508,-628.41,0.0003041,2]
[319592856,1710885054518,-500.0,0.0003041,2]
[319592857,1710885054529,-500.0,0.0003041,2]
[319592858,1710885054539,-500.0,0.0003041,2]
[319592859,1710885054548,-964.89,0.0003041,2]
[319592860,1710885054558,-620.13,0.0003041,2]
[319592861,1710885054568,-786.01,0.0003041,2]
[319592862,1710885054578,-865.28,0.0003041,2]
[319592863,1710885054587,-564.61,0.0003041,2]
[319592864,1710885054597,-500.0,0.0003041,2]
[319592865,1710885054607,-524.59742212,0.0003041,2]
[319592866,1710885054616,-500.0,0.0003041,2]
[319592867,1710885054626,-500.0,0.0003041,2]
[319592868,1710885054635,-500.0,0.0003041,2]
[319592869,1710885054644,-500.0,0.0003041,2]
[319592870,1710885054654,-529.43,0.0003041,2]
[319592871,1710885054663,-618.58,0.0003041,2]
[319592872,1710885054673,-500.0,0.0003041,2]
[319592873,1710885054683,-563.52,0.0003041,2]
[319592874,1710885054692,-500.0,0.0003041,2]
[319592875,1710885054701,-2015.12,0.0003041,2]
[319592876,1710885054711,-500.0,0.0003041,2]
[319592877,1710885054721,-500.0,0.0003041,2]
[319592878,1710885054730,-631.9,0.0003041,2]
[319592879,1710885054740,-681.13,0.0003041,2]
[319592880,1710885054749,-1086.99,0.0003041,2]
[319592881,1710885054758,-500.0,0.0003041,2]
[319592882,1710885054767,-500.0,0.0003041,2]
[319592883,1710885054777,-500.0,0.0003041,2]
[319592884,1710885054786,-500.0,0.0003041,2]
[319592885,1710885054796,-500.0,0.0003041,2]
[319592886,1710885054807,-652.31,0.0003041,2]
[319592887,1710885054817,-500.0,0.0003041,2]
[319592888,1710885054826,-1320.6,0.0003041,2]
[319592889,1710885054835,-1250.92,0.0003041,2]
[319592890,1710885054845,-1120.04,0.0003041,2]
[319592891,1710885054854,-500.0,0.0003041,2]
[319592892,1710885054863,-500.0,0.0003041,2]
[319592893,1710885054872,-500.0,0.0003041,2]
[319592894,1710885054882,-510.25,0.0003041,2]
[319592895,1710885054891,-1041.72,0.0003041,2]
[319592896,1710885054903,-921.3,0.0003041,2]
[319592897,1710885054914,-1043.25,0.0003041,2]
[319592898,1710885054924,-500.0,0.0003041,2]
[319592899,1710885054935,-500.0,0.0003041,2]
[319592900,1710885054945,-535.44,0.0003041,2]
[319592901,1710885054956,-500.0,0.0003041,2]
[319592902,1710885054965,-500.0,0.0003041,2]
[319592903,1710885054975,-500.0,0.0003041,2]
[319592904,1710885054984,-500.0,0.0003041,2]
[319592905,1710885054994,-500.0,0.0003041,2]
[319592906,1710885055003,-957.02,0.0003041,2]
[319592907,1710885055012,-549.6,0.0003041,2]
[319592908,1710885055022,-500.0,0.0003041,2]
[319592909,1710885055031,-500.0,0.0003041,2]
[319592910,1710885055040,-500.0,0.0003041,2]
[319592911,1710885055050,-500.0,0.0003041,2]
[319592912,1710885055060,-546.14,0.0003041,2]
[319592913,1710885055069,-500.0,0.0003041,2]
[319592914,1710885055079,-500.0,0.0003041,2]
[319592915,1710885055089,-983.01,0.0003041,2]
[319592916,1710885055098,-500.0,0.0003041,2]
[319592917,1710885055107,-500.0,0.0003041,2]
[319592918,1710885055117,-500.0,0.0003041,2]
[319592919,1710885055127,-500.0,0.0003041,2]
[319592920,1710885055137,-502.25,0.0003041,2]
[319592921,1710885055146,-583.52,0.0003041,2]
[319592922,1710885055155,-500.0,0.0003041,2]
[319592923,1710885055165,-500.0,0.0003041,2]
[319592924,1710885055175,-500.0,0.0003041,2]
[319592925,1710885055184,-701.32,0.0003041,2]
[319592926,1710885055194,-845.97,0.0003041,2]
[319592927,1710885055203,-500.0,0.0003041,2]
[319592928,1710885055213,-604.6,0.0003041,2]
[319592929,1710885055223,-500.0,0.0003041,2]
[319592930,1710885055233,-626.44,0.0003041,2]
[319592931,1710885055242,-500.0,0.0003041,2]
[319592932,1710885055252,-500.0,0.0003041,2]
[319592933,1710885055261,-1296.65,0.0003041,2]
[319592934,1710885055271,-500.0,0.0003041,2]
[319592935,1710885055281,-1134.53,0.0003041,2]
[319592936,1710885055290,-500.0,0.0003041,2]
[319592937,1710885055299,-500.0,0.0003041,2]
[319592938,1710885055311,-507.2,0.0003041,2]
[319592939,1710885055320,-783.57,0.0003041,2]
[319592940,1710885055329,-1022.89,0.0003041,2]
[319592941,1710885055339,-668.88,0.0003041,2]
[319592942,1710885055348,-500.0,0.0003041,2]
[319592943,1710885055357,-500.0,0.0003041,2]
[319592944,1710885055366,-597.77,0.0003041,2]
[319592945,1710885055376,-500.0,0.0003041,2]
[319592946,1710885055385,-500.0,0.0003041,2]
[319592947,1710885055394,-500.0,0.0003041,2]
[319592948,1710885055404,-1578.12,0.0003041,2]
[319592949,1710885055413,-1317.95,0.0003041,2]
[319592950,1710885055422,-500.0,0.0003041,2]
[319592951,1710885055431,-500.0,0.0003041,2]
[319592952,1710885055441,-500.0,0.0003041,2]
[319592953,1710885055455,-500.0,0.0003041,2]
[319592954,1710885055464,-706.81,0.0003041,2]
[319592955,1710885055474,-500.0,0.0003041,2]
[319592956,1710885055483,-820.72,0.0003041,2]
[319592957,1710885055493,-500.0,0.0003041,2]
[319592958,1710885055502,-511.35,0.0003041,2]
[319592959,1710885055511,-500.0,0.0003041,2]
[319592960,1710885055520,-500.0,0.0003041,2]
[319592961,1710885055530,-1159.47,0.0003041,2]
[319592962,1710885055539,-752.64,0.0003041,2]
[319592963,1710885055548,-1433.6,0.0003041,2]
[319592964,1710885055557,-500.0,0.0003041,2]
[319592965,1710885055566,-500.0,0.0003041,2]
[319592966,1710885055575,-500.0,0.0003041,2]
[319592967,1710885055584,-500.0,0.0003041,2]
[319592968,1710885055593,-1189.27,0.0003041,2]
[319592969,1710885055602,-500.0,0.0003041,2]
[319592970,1710885055611,-500.0,0.0003041,2]
[319592971,1710885055621,-572.14,0.0003041,2]
[319592972,1710885055630,-1127.91,0.0003041,2]
[319592973,1710885055640,-729.46,0.0003041,2]
[319592974,1710885055649,-500.0,0.0003041,2]
[319592975,1710885055659,-500.0,0.0003041,2]
[319592976,1710885055668,-1199.62,0.0003041,2]
[319592977,1710885055677,-562.99,0.0003041,2]
[319592978,1710885055687,-786.3,0.0003041,2]
[319592979,1710885055696,-500.0,0.0003041,2]
[319592980,1710885055705,-500.0,0.0003041,2]
[319592981,1710885055714,-1265.95,0.0003041,2]
[319592982,1710885055723,-500.0,0.0003041,2]
[319592983,1710885055732,-580.29,0.0003041,2]
[319592984,1710885055742,-500.0,0.0003041,2]
[319592985,1710885055751,-500.0,0.0003041,2]
[319592986,1710885055761,-500.0,0.0003041,2]
[319592987,1710885055770,-718.68,0.0003041,2]
[319592988,1710885055780,-2136.15,0.0003041,2]
[319592989,1710885055790,-928.05,0.0003041,2]
[319592990,1710885055800,-500.0,0.0003041,2]
[319592991,1710885055810,-783.9,0.0003041,2]
[319592992,1710885055819,-1320.02,0.0003041,2]
[319592993,1710885055828,-500.0,0.0003041,2]
[319592994,1710885055837,-1043.02,0.0003041,2]
[319592995,1710885055847,-802.08,0.0003041,2]
[319592996,1710885055856,-500.0,0.0003041,2]
[319592997,1710885055865,-1028.49,0.0003041,2]
[319592998,1710885055875,-1179.51,0.0003041,2]
[319592999,1710885055884,-812.3,0.0003041,2]
[319593000,1710885055962,-1146.04,0.0003041,2]
[319593001,1710885055972,-500.0,0.0003041,2]
[319593002,1710885055982,-500.0,0.0003041,2]
[319593003,1710885055991,-1045.71,0.0003041,2]
[319593004,1710885056001,-267.59465251,0.0003041,2]
[319593005,1710885056010,-500.0,0.0003041,2]
[319593006,1710885056019,-500.0,0.0003041,2]
[319593007,1710885056028,-530.67,0.0003041,2]
[319593008,1710885056037,-649.64,0.0003041,2]
[319593009,1710885056046,-500.0,0.0003041,2]
[319593010,1710885056056,-500.0,0.0003041,2]
[319593011,1710885056065,-500.0,0.0003041,2]
[319593012,1710885056074,-500.0,0.0003041,2]
[319593013,1710885056083,-500.0,0.0003041,2]
[319593014,1710885056092,-500.0,0.0003041,2]
[319593015,1710885056101,-500.0,0.0003041,2]
[319593016,1710885056110,-500.0,0.0003041,2]
[319593017,1710885056118,-500.0,0.0003041,2]
[319593018,1710885056128,-500.0,0.0003041,2]
[319593019,1710885056137,-500.0,0.0003041,2]
[319593020,1710885056146,-775.28,0.0003041,2]
[319593021,1710885056156,-897.58,0.0003041,2]
[319593022,1710885056165,-1675.73,0.0003041,2]
[319593023,1710885056174,-500.0,0.0003041,2]
[319593024,1710885056183,-500.0,0.0003041,2]
[319593025,1710885056192,-937.79,0.0003041,2]
[319593026,1710885056212,-734.15,0.0003041,2]
[319593027,1710885056222,-500.0,0.0003041,2]
[319593028,1710885056232,-500.0,0.0003041,2]
[319593029,1710885056242,-1431.93,0.0003041,2]
[319593030,1710885056253,-530.51,0.0003041,2]
[319593031,1710885056262,-1508.78,0.0003041,2]
[319593032,1710885056272,-500.0,0.0003041,2]
[319593033,1710885056282,-500.0,0.0003041,2]
[319593034,1710885056291,-500.0,0.0003041,2]
[319593035,1710885056301,-500.0,0.0003041,2]
[319593036,1710885056312,-500.0,0.0003041,2]
[319593037,1710885056322,-500.0,0.0003041,2]
[319593038,1710885056331,-500.0,0.0003041,2]
[319593039,1710885056341,-621.71,0.0003041,2]
[319593040,1710885056350,-3024.0,0.0003041,2]
[319593041,1710885056360,-469.5,0.0003041,2]
[319593042,1710885056370,-571.47,0.0003041,2]
[319593043,1710885056379,-506.71896801,0.0003041,2]
[319593044,1710885056390,-500.0,0.0003041,2]
[319593045,1710885056400,-538.79,0.0003041,2]
[319593046,1710885056410,-762.86,0.0003041,2]
[319593047,1710885056420,-985.89,0.0003041,2]
[319593048,1710885056429,-500.0,0.0003041,2]
[319593049,1710885056442,-1947.91,0.0003041,2]
[319593050,1710885056452,-863.2,0.0003041,2]
[319593051,1710885056461,-500.0,0.0003041,2]
[319593052,1710885056471,-500.0,0.0003041,2]
[319593053,1710885056480,-500.0,0.0003041,2]
[319593054,1710885056490,-747.16,0.0003041,2]
[319593055,1710885056499,-538.79,0.0003041,2]
[319593056,1710885056508,-772.61,0.0003041,2]
[319593057,1710885056519,-500.0,0.0003041,2]
[319593058,1710885056530,-500.0,0.0003041,2]
[319593059,1710885056539,-500.0,0.0003041,2]
[319593060,1710885056548,-500.0,0.0003041,2]
[319593061,1710885056559,-500.0,0.0003041,2]
[319593062,1710885056568,-500.0,0.0003041,2]
[319593063,1710885056577,-1767.34,0.0003041,2]
[319593064,1710885056586,-500.0,0.0003041,2]
[319593065,1710885056595,-500.0,0.0003041,2]
[319593066,1710885056604,-500.0,0.0003041,2]
[319593067,1710885056613,-1603.73,0.0003041,2]
[319593068,1710885056623,-500.0,0.0003041,2]
[319593069,1710885056632,-500.0,0.0003041,2]
[319593070,1710885056642,-500.0,0.0003041,2]
[319593071,1710885056655,-500.0,0.0003041,2]
[319593072,1710885056665,-469.32,0.0003041,2]
[319593073,1710885056675,-892.48,0.0003041,2]
[319593074,1710885056684,-1478.75,0.0003041,2]
[319593075,1710885056694,-654.11,0.0003041,2]
[319593076,1710885056703,-500.0,0.0003041,2]
[319593077,1710885056713,-500.0,0.0003041,2]
[319593078,1710885056723,-1208.68,0.0003041,2]
[319593079,1710885056732,-500.0,0.0003041,2]
[319593080,1710885056742,-500.0,0.0003041,2]
[319593081,1710885056751,-500.0,0.0003041,2]
[319593082,1710885056761,-1428.4,0.0003041,2]
[319593083,1710885056770,-1477.07,0.0003041,2]
[319593084,1710885056779,-500.0,0.0003041,2]
[319593085,1710885056789,-500.0,0.0003041,2]
[319593086,1710885056799,-526.9,0.0003041,2]
[319593087,1710885056810,-500.0,0.0003041,2]
[319593088,1710885056819,-2930.57,0.0003041,2]
[319593089,1710885056830,-500.0,0.0003041,2]
[319593090,1710885056841,-500.0,0.0003041,2]
[319593091,1710885056850,-948.83,0.0003041,2]
[319593092,1710885056860,-500.0,0.0003041,2]
[319593093,1710885056869,-500.0,0.0003041,2]
[319593094,1710885056878,-1084.77,0.0003041,2]
[319593095,1710885056887,-500.0,0.0003041,2]
[319593096,1710885056897,-500.0,0.0003041,2]
[319593097,1710885056907,-500.0,0.0003041,2]
[319593098,1710885056920,-500.0,0.0003041,2]
[319593099,1710885056930,-500.0,0.0003041,2]
[319593100,1710885056940,-1970.31,0.0003041,2]
[319593101,1710885056949,-1046.29,0.0003041,2]
[319593102,1710885056959,-853.25,0.0003041,2]
[319593103,1710885056969,-748.56,0.0003041,2]
[319593104,1710885056978,-608.95,0.0003041,2]
[319593105,1710885056988,-500.0,0.0003041,2]
[319593106,1710885056998,-168.20706105,0.0003041,2]
[319593107,1710885057007,-636.98,0.0003041,2]
[319593108,1710885057017,-500.0,0.0003041,2]
[319593109,1710885057026,-500.0,0.0003041,2]
[319593110,1710885057036,-1279.27,0.0003041,2]
[319593111,1710885057046,-466.12400415,0.0003041,2]
[319593112,1710885057057,-500.0,0.0003041,2]
[319593113,1710885057066,-1827.01,0.0003041,2]
[319593114,1710885057075,-500.0,0.0003041,2]
[319593115,1710885057085,-1006.11,0.0003041,2]
[319593116,1710885057094,-500.0,0.0003041,2]
[319593117,1710885057104,-500.0,0.0003041,2]
[319593118,1710885057113,-500.0,0.0003041,2]
[319593119,1710885057122,-1949.93,0.0003041,2]
[319593120,1710885057132,-500.0,0.0003041,2]
[319593121,1710885057142,-1192.24,0.0003041,2]
[319593122,1710885057152,-500.0,0.0003041,2]
[319593123,1710885057162,-2813.53,0.0003041,2]
[319593124,1710885057172,-845.98,0.0003041,2]
[319593125,1710885057181,-1011.35,0.0003041,2]
[319593126,1710885057195,-500.0,0.0003041,2]
[319593127,1710885057205,-1701.68,0.0003041,2]
[319593128,1710885057215,-1413.56,0.0003041,2]
[319593129,1710885057224,-500.0,0.0003041,2]
[319593130,1710885057234,-671.21,0.0003041,2]
[319593131,1710885057244,-856.2,0.0003041,2]
[319593132,1710885057254,-500.0,0.0003041,2]
[319593133,1710885057263,-500.0,0.0003041,2]
[319593134,1710885057273,-1896.31,0.0003041,2]
[319593135,1710885057283,-500.0,0.0003041,2]
[319593136,1710885057293,-2782.61,0.0003041,2]
[319593137,1710885057302,-500.0,0.0003041,2]
[319593138,1710885057313,-500.0,0.0003041,2]
[319593139,1710885057323,-609.95,0.0003041,2]
[319593140,1710885057333,-500.0,0.0003041,2]
[319593141,1710885057343,-1536.94,0.0003041,2]
[319593142,1710885057353,-2552.49,0.0003041,2]
[319593143,1710885057363,-500.0,0.0003041,2]
[319593144,1710885057373,-2081.49,0.0003041,2]
[319593145,1710885057383,-500.0,0.0003041,2]
[319593146,1710885057393,-1715.16,0.0003041,2]
[319593147,1710885057403,-500.0,0.0003041,2]
[319593148,1710885057413,-1266.65,0.0003041,2]
[319593149,1710885057422,-1645.88,0.0003041,2]
[319593150,1710885057432,-500.0,0.0003041,2]
[319593151,1710885057443,-500.0,0.0003041,2]
[319593152,1710885057455,-500.0,0.0003041,2]
[319593153,1710885057465,-500.0,0.0003041,2]
[319593154,1710885057476,-500.0,0.0003041,2]
[319593155,1710885057486,-1784.06,0.0003041,2]
[319593156,1710885057495,-1425.44,0.0003041,2]
[319593157,1710885057505,-500.0,0.0003041,2]
[319593158,1710885057515,-645.99,0.0003041,2]
[319593159,1710885057526,-500.0,0.0003041,2]
[319593160,1710885057535,-500.0,0.0003041,2]
[319593161,1710885057545,-856.99,0.0003041,2]
[319593162,1710885057557,-1509.6,0.0003041,2]
[319593163,1710885057566,-500.0,0.0003041,2]
[319593164,1710885057576,-1899.37,0.0003041,2]
[319593165,1710885057585,-825.81,0.0003041,2]
[319593166,1710885057595,-500.0,0.0003041,2]
[319593167,1710885057605,-500.0,0.0003041,2]
[319593168,1710885057615,-500.0,0.0003041,2]
[319593169,1710885057624,-1668.46,0.0003041,2]
[319593170,1710885057634,-500.0,0.0003041,2]
[319593171,1710885057644,-500.0,0.0003041,2]
[319593172,1710885057654,-1817.59,0.0003041,2]
[319593173,1710885057663,-612.56,0.0003041,2]
[319593174,1710885057673,-500.0,0.0003041,2]
[319593175,1710885057683,-641.85,0.0003041,2]
[319593176,1710885057693,-500.0,0.0003041,2]
[319593177,1710885057703,-500.0,0.0003041,2]
[319593178,1710885057712,-1668.73,0.0003041,2]
[319593179,1710885057721,-3349.51,0.0003041,2]
[319593180,1710885057731,-500.0,0.0003041,2]
[319593181,1710885057740,-2185.83,0.0003041,2]
[319593182,1710885057750,-1047.88,0.0003041,2]
[319593183,1710885057759,-500.0,0.0003041,2]
[319593184,1710885057769,-709.8,0.0003041,2]
[319593185,1710885057779,-500.0,0.0003041,2]
[319593186,1710885057789,-3189.82,0.0003041,2]
[319593187,1710885057798,-500.0,0.0003041,2]
[319593188,1710885057809,-500.0,0.0003041,2]
[319593189,1710885057819,-2131.99,0.0003041,2]
[319593190,1710885057829,-500.0,0.0003041,2]
[319593191,1710885057838,-500.0,0.0003041,2]
[319593192,1710885057848,-2548.99,0.0003041,2]
[319593193,1710885057857,-500.0,0.0003041,2]
[319593194,1710885057866,-500.0,0.0003041,2]
[319593195,1710885057875,-1717.39,0.0003041,2]
[319593196,1710885057885,-500.0,0.0003041,2]
[319593197,1710885057894,-500.0,0.0003041,2]
[319593198,1710885057903,-500.0,0.0003041,2]
[319593199,1710885057912,-3499.12,0.0003041,2]
[319593200,1710885057922,-3366.11,0.0003041,2]
[319593201,1710885057931,-920.95,0.0003041,2]
[319593202,1710885057941,-1172.13,0.0003041,2]
[319593203,1710885057951,-762.14,0.0003041,2]
[319593204,1710885057960,-500.0,0.0003041,2]
[319593205,1710885057970,-500.0,0.0003041,2]
[319593206,1710885057979,-500.0,0.0003041,2]
[319593207,1710885057989,-500.0,0.0003041,2]
[319593208,1710885058007,-500.0,0.0003041,2]
[319593209,1710885058018,-500.0,0.0003041,2]
[319593210,1710885058027,-651.81,0.0003041,2]
[319593211,1710885058037,-2755.73,0.0003041,2]
[319593212,1710885058046,-500.0,0.0003041,2]
[319593213,1710885058056,-2171.26,0.0003041,2]
[319593214,1710885058066,-554.31,0.0003041,2]
[319593215,1710885058075,-913.38,0.0003041,2]
[319593216,1710885058085,-517.56,0.0003041,2]
[319593217,1710885058094,-500.0,0.0003041,2]
[319593218,1710885058104,-622.91,0.0003041,2]
[319593219,1710885058113,-1265.69,0.0003041,2]
[319593220,1710885058123,-576.05,0.0003041,2]
[319593221,1710885058132,-2191.46,0.0003041,2]
[319593222,1710885058141,-1378.12,0.0003041,2]
[319593223,1710885058151,-500.0,0.0003041,2]
[319593224,1710885058160,-500.0,0.0003041,2]
[319593225,1710885058170,-832.3,0.0003041,2]
[319593226,1710885058179,-3259.21,0.0003041,2]
[319593227,1710885058189,-516.5,0.0003041,2]
[319593228,1710885058198,-500.0,0.0003041,2]
[319593229,1710885058208,-500.0,0.0003041,2]
[319593230,1710885058218,-750.69,0.0003041,2]
[319593231,1710885058228,-500.0,0.0003041,2]
[319593232,1710885058237,-6099.55,0.0003041,2]
[319593233,1710885058247,-500.0,0.0003041,2]
[319593234,1710885058257,-705.53,0.0003041,2]
[319593235,1710885058266,-583.59,0.0003041,2]
[319593236,1710885058276,-510.82,0.0003041,2]
[319593237,1710885058286,-554.14,0.0003041,2]
[319593238,1710885058295,-500.0,0.0003041,2]
[319593239,1710885058306,-1054.91,0.0003041,2]
[319593240,1710885058315,-1769.12,0.0003041,2]
[319593241,1710885058325,-500.0,0.0003041,2]
[319593242,1710885058335,-500.0,0.0003041,2]
[319593243,1710885058344,-500.0,0.0003041,2]
[319593244,1710885058353,-758.11,0.0003041,2]
[319593245,1710885058363,-500.0,0.0003041,2]
[319593246,1710885058372,-500.0,0.0003041,2]
[319593247,1710885058381,-614.47,0.0003041,2]
[319593248,1710885058391,-500.0,0.0003041,2]
[319593249,1710885058401,-565.83,0.0003041,2]
[319593250,1710885058411,-3031.48,0.0003041,2]
[319593251,1710885058420,-500.0,0.0003041,2]
[319593252,1710885058430,-1793.05,0.0003041,2]
[319593253,1710885058439,-1813.36,0.0003041,2]
[319593254,1710885058452,-1781.25,0.0003041,2]
[319593255,1710885058462,-500.0,0.0003041,2]
[319593256,1710885058472,-500.0,0.0003041,2]
[319593257,1710885058482,-5948.25,0.0003041,2]
[319593258,1710885058493,-500.0,0.0003041,2]
[319593259,1710885058503,-500.0,0.0003041,2]
[319593260,1710885058513,-721.19,0.0003041,2]
[319593261,1710885058523,-500.0,0.0003041,2]
[319593262,1710885058535,-531.77493994,0.0003041,2]
[319593263,1710885058545,-500.0,0.0003041,2]
[319593264,1710885058556,-2298.94,0.0003041,2]
[319593265,1710885058565,-500.0,0.0003041,2]
[319593266,1710885058575,-1467.68,0.0003041,2]
[319593267,1710885058585,-2048.3,0.0003041,2]
[319593268,1710885058594,-500.0,0.0003041,2]
[319593269,1710885058604,-500.0,0.0003041,2]
[319593270,1710885058615,-740.6,0.0003041,2]
[319593271,1710885058624,-183.60647705,0.0003041,2]
[319593272,1710885058634,-500.0,0.0003041,2]
[319593273,1710885058643,-252.02374171,0.0003041,2]
[319593274,1710885058653,-3725.64,0.0003041,2]
[319593275,1710885058662,-500.0,0.0003041,2]
[319593276,1710885058671,-7446.28,0.0003041,2]
[319593277,1710885058680,-1176.01,0.0003041,2]
[319593278,1710885058689,-500.0,0.0003041,2]
[319593279,1710885058699,-500.0,0.0003041,2]
[319593280,1710885058708,-1639.61,0.0003041,2]
[319593281,1710885058717,-500.0,0.0003041,2]
[319593282,1710885058727,-500.0,0.0003041,2]
[319593283,1710885058736,-814.35,0.0003041,2]
[319593284,1710885058745,-326.58000213,0.0003041,2]
[319593285,1710885058755,-500.0,0.0003041,2]
[319593286,1710885058764,-1904.86,0.0003041,2]
[319593287,1710885058774,-531.89,0.0003041,2]
[319593288,1710885058783,-623.12463324,0.0003041,2]
[319593289,1710885058793,-541.15,0.0003041,2]
[319593290,1710885058802,-273.62775017,0.0003041,2]
[319593291,1710885058812,-500.0,0.0003041,2]
[319593292,1710885058822,-505.23,0.0003041,2]
[319593293,1710885058832,-500.0,0.0003041,2]
[319593294,1710885058841,-1726.69,0.0003041,2]
[319593295,1710885058850,-500.0,0.0003041,2]
[319593296,1710885058860,-706.92,0.0003041,2]
[319593297,1710885058869,-1397.11,0.0003041,2]
[319593298,1710885058879,-500.0,0.0003041,2]
[319593299,1710885058888,-644.74,0.0003041,2]
[319593300,1710885058897,-2864.27,0.0003041,2]
[319593301,1710885058906,-723.57,0.0003041,2]
[319593302,1710885058916,-500.0,0.0003041,2]
[319593303,1710885058925,-2584.9,0.0003041,2]
[319593304,1710885058935,-6961.76,0.0003041,2]
[319593305,1710885058944,-500.0,0.0003041,2]
[319593306,1710885058953,-1043.19,0.0003041,2]
[319593307,1710885058963,-915.89,0.0003041,2]
[319593308,1710885058972,-500.0,0.0003041,2]
[319593309,1710885058982,-1764.05,0.0003041,2]
[319593310,1710885058991,-1312.85,0.0003041,2]
[319593311,1710885059001,-1045.63,0.0003041,2]
[319593312,1710885059010,-961.87,0.0003041,2]
[319593313,1710885059020,-3736.86,0.0003041,2]
[319593314,1710885059030,-500.0,0.0003041,2]